fUSD/lending_fUSD_20250530
["ID","MTS","AMOUNT","RATE_DAILY","PERIOD"]
[363101297,1748578242662,-420.0,0.00021917,2]
[363101298,1748578242672,-420.0,0.00021917,2]
[363101299,1748578242685,-504.48547363,0.00021917,2]
[363101300,1748578242695,-543.61038242,0.00021917,2]
[363101301,1748578242705,-420.0,0.00021917,2]
[363101302,1748578242715,-785.63,0.00021917,2]
[363101303,1748578242725,-420.0,0.00021917,2]
[363101304,1748578242737,-420.0,0.00021917,2]
[363101305,1748578242746,-420.0,0.00021917,2]
[363101306,1748578242758,-420.0,0.00021917,2]
[363101307,1748578242775,-420.0,0.00021917,2]
[363101308,1748578242786,-420.0,0.00021917,2]
[363101309,1748578242796,-420.0,0.00021917,2]
[363101310,1748578242806,-526.26,0.00021917,2]
[363101311,1748578242816,-420.0,0.00021917,2]
[363101312,1748578242826,-1143.06,0.00021917,2]
[363101313,1748578242836,-1377.75,0.00021917,2]
[363101314,1748578242847,-420.93314251,0.00021917,2]
[363101315,1748578242859,-420.0,0.00021917,2]
[363101316,1748578242869,-420.0,0.00021917,2]
[363101317,1748578242878,-475.00740577,0.00021917,2]
[363101318,1748578242887,-1007.98,0.00021917,2]
[363101319,1748578242897,-679.65,0.00021917,2]
[363101320,1748578242907,-420.0,0.00021917,2]
[363101321,1748578242917,-895.86,0.00021917,2]
[363101322,1748578242926,-420.0,0.00021917,2]
[363101323,1748578242936,-1000.8,0.00021917,2]
[363101324,1748578242946,-533.06,0.00021917,2]
[363101325,1748578242956,-458.98461193,0.00021917,2]
[363101326,1748578242965,-1028.95,0.00021917,2]
[363101327,1748578242975,-420.0,0.00021917,2]
[363101328,1748578242984,-551.19,0.00021917,2]
[363101329,1748578242995,-420.0,0.00021917,2]
[363101330,1748578243004,-558.48,0.00021917,2]
[363101331,1748578243014,-574.06,0.00021917,2]
[363101332,1748578243024,-569.87,0.00021917,2]
[363101333,1748578243035,-503.5,0.00021917,2]
[363101334,1748578243044,-420.0,0.00021917,2]
[363101335,1748578243053,-845.1,0.00021917,2]
[363101336,1748578243063,-420.0,0.00021917,2]
[363101337,1748578243072,-420.0,0.00021917,2]
[363101338,1748578243082,-420.0,0.00021917,2]
[363101339,1748578243091,-1211.06,0.00021917,2]
[363101340,1748578243101,-420.0,0.00021917,2]
[363101341,1748578243111,-1407.11,0.00021917,2]
[363101342,1748578243120,-420.0,0.00021917,2]
[363101343,1748578243130,-420.0,0.00021917,2]
[363101344,1748578243139,-420.0,0.00021917,2]
[363101345,1748578243149,-1544.5,0.00021917,2]
[363101346,1748578243158,-548.86,0.00021917,2]
[363101347,1748578243167,-441.03,0.00021917,2]
[363101349,1748578243177,-420.0,0.00021917,2]
[363101351,1748578243187,-420.0,0.00021917,2]
[363101353,1748578243197,-469.03,0.00021917,2]
[363101354,1748578243206,-827.76,0.00021917,2]
[363101355,1748578243215,-504.36,0.00021917,2]
[363101356,1748578243224,-420.0,0.00021917,2]
[363101357,1748578243233,-1081.37,0.00021917,2]
[363101358,1748578243243,-420.0,0.00021917,2]
[363101359,1748578243253,-420.0,0.00021917,2]
[363101360,1748578243262,-406.74661506,0.00021917,2]
[363101361,1748578243271,-1230.45,0.00021917,2]
[363101362,1748578243280,-938.71,0.00021917,2]
[363101363,1748578243290,-420.0,0.00021917,2]
[363101364,1748578243299,-424.93012342,0.00021917,2]
[363101365,1748578243308,-420.0,0.00021917,2]
[363101366,1748578243317,-644.07,0.00021917,2]
[363101367,1748578243327,-420.0,0.00021917,2]
[363101368,1748578243336,-310.6088337,0.00021917,2]
[363101369,1748578243823,-109.3911663,0.00021917,2]
[363101370,1748578243833,-420.0,0.00021917,2]
[363101371,1748578243843,-878.62,0.00021917,2]
[363101372,1748578243852,-420.0,0.00021917,2]
[363101373,1748578243861,-703.65,0.00021917,2]
[363101374,1748578243871,-896.93,0.00021917,2]
[363101375,1748578243880,-420.0,0.00021917,2]
[363101376,1748578243890,-429.41329733,0.00021917,2]
[363101377,1748578243899,-420.0,0.00021917,2]
[363101378,1748578243908,-420.0,0.00021917,2]
[363101379,1748578243917,-1579.22,0.00021917,2]
[363101380,1748578243927,-420.0,0.00021917,2]
[363101381,1748578243936,-420.0,0.00021917,2]
[363101382,1748578243945,-444.62,0.00021917,2]
[363101383,1748578243954,-420.0,0.00021917,2]
[363101384,1748578243963,-420.0,0.00021917,2]
[363101385,1748578243974,-420.0,0.00021917,2]
[363101386,1748578243983,-438.76,0.00021917,2]
[363101387,1748578243992,-3487.38,0.00021917,2]
[363101388,1748578244001,-9870.4,0.00021917,2]
[363101389,1748578244010,-1172.44,0.00021917,2]
[363101390,1748578244019,-464.49,0.00021917,2]
[363101391,1748578244028,-510.79,0.00021917,2]
[363101392,1748578244037,-2322.94,0.00021917,2]
[363101393,1748578244047,-424.29767535,0.00021917,2]
[363101394,1748578244056,-497.58,0.00021917,2]
[363101395,1748578244065,-797.88,0.00021917,2]
[363101396,1748578244074,-1393.85,0.00021917,2]
[363101397,1748578244083,-2596.022652,0.00021917,2]
[363101398,1748578244092,-2596.022652,0.00021917,2]
[363101399,1748578244101,-2258.212728,0.00021917,2]
[363101400,1748578244110,-2258.212728,0.00021917,2]
[363101401,1748578244119,-608.37,0.00021917,2]
[363101402,1748578244128,-1311.92,0.00021917,2]
[363101403,1748578244137,-659.6,0.00021917,2]
[363101404,1748578244147,-420.0,0.00021917,2]
[363101405,1748578244157,-1553.34,0.00021917,2]
[363101406,1748578244166,-424.82,0.00021917,2]
[363101407,1748578244176,-420.0,0.00021917,2]
[363101408,1748578244185,-420.0,0.00021917,2]
[363101409,1748578244195,-485.02,0.00021917,2]
[363101410,1748578244204,-420.0,0.00021917,2]
[363101411,1748578244213,-1083.19,0.00021917,2]
[363101412,1748578244222,-420.0,0.00021917,2]
[363101413,1748578244231,-1151.65,0.00021917,2]
[363101414,1748578244241,-461.37,0.00021917,2]
[363101415,1748578244250,-420.0,0.00021917,2]
[363101416,1748578244260,-420.0,0.00021917,2]
[363101417,1748578244269,-1934.85,0.00021917,2]
[363101418,1748578244278,-1384.33,0.00021917,2]
[363101419,1748578244287,-543.95,0.00021917,2]
[363101420,1748578244296,-4219.78,0.00021917,2]
[363101421,1748578244306,-420.0,0.00021917,2]
[363101422,1748578244315,-420.0,0.00021917,2]
[363101423,1748578244324,-2900.54,0.00021917,2]
[363101424,1748578244333,-423.82130491,0.00021917,2]
[363101425,1748578244343,-2591.89,0.00021917,2]
[363101426,1748578244352,-1042.18,0.00021917,2]
[363101427,1748578244362,-423.72624046,0.00021917,2]
[363101428,1748578244371,-2123.6,0.00021917,2]
[363101429,1748578244381,-1842.72,0.00021917,2]
[363101430,1748578244390,-420.0,0.00021917,2]
[363101431,1748578244399,-696.37,0.00021917,2]
[363101432,1748578244408,-420.0,0.00021917,2]
[363101433,1748578244417,-611.28,0.00021917,2]
[363101434,1748578244427,-699.09,0.00021917,2]
[363101435,1748578244436,-420.0,0.00021917,2]
[363101436,1748578244446,-965.92,0.00021917,2]
[363101437,1748578244455,-11044.0,0.00021917,2]
[363101438,1748578244465,-1580.13,0.00021917,2]
[363101439,1748578244474,-835.33,0.00021917,2]
[363101440,1748578244485,-420.0,0.00021917,2]
[363101441,1748578244494,-12174.49,0.00021917,2]
[363101442,1748578244504,-2295.54,0.00021917,2]
[363101443,1748578244514,-605.23,0.00021917,2]
[363101444,1748578244523,-11703.67,0.00021917,2]
[363101445,1748578244532,-2022.31,0.00021917,2]
[363101446,1748578244541,-445.8,0.00021917,2]
[363101447,1748578244551,-1568.1,0.00021917,2]
[363101448,1748578244560,-930.18,0.00021917,2]
[363101449,1748578244569,-420.0,0.00021917,2]
[363101450,1748578244579,-4183.96,0.00021917,2]
[363101451,1748578244588,-24475.78,0.00021917,2]
[363101452,1748578244597,-420.0,0.00021917,2]
[363101453,1748578244606,-1543.4,0.00021917,2]
[363101454,1748578244615,-420.0,0.00021917,2]
[363101455,1748578244625,-332.19930091,0.00021917,2]
[363101456,1748578244634,-716.63,0.00021917,2]
[363101457,1748578244643,-540.06,0.00021917,2]
[363101458,1748578244652,-420.0,0.00021917,2]
[363101459,1748578244662,-1553.76,0.00021917,2]
[363101460,1748578244672,-1310.17,0.00021917,2]
[363101461,1748578244683,-1302.81,0.00021917,2]
[363101462,1748578244693,-420.0,0.00021917,2]
[363101463,1748578244703,-774.59,0.00021917,2]
[363101464,1748578244712,-420.0,0.00021917,2]
[363101465,1748578244722,-3196.49,0.00021917,2]
[363101466,1748578244731,-7039.35,0.00021917,2]
[363101467,1748578244742,-1389.77,0.00021917,2]
[363101468,1748578244752,-506.0,0.00021917,2]
[363101469,1748578244762,-1519.07,0.00021917,2]
[363101470,1748578244771,-420.0,0.00021917,2]
[363101471,1748578244780,-4591.08,0.00021917,2]
[363101472,1748578244789,-1426.84,0.00021917,2]
[363101473,1748578244799,-935.41,0.00021917,2]
[363101474,1748578244808,-839.56,0.00021917,2]
[363101475,1748578244817,-911.39,0.00021917,2]
[363101476,1748578244826,-420.0,0.00021917,2]
[363101477,1748578244836,-420.0,0.00021917,2]
[363101478,1748578244845,-1241.87,0.00021917,2]
[363101479,1748578244855,-420.0,0.00021917,2]
[363101480,1748578244864,-823.36,0.00021917,2]
[363101481,1748578244873,-1919.58,0.00021917,2]
[363101482,1748578244882,-2652.22,0.00021917,2]
[363101483,1748578245129,-736.56,0.00021917,2]
[363101484,1748578245139,-490.53,0.00021917,2]
[363101485,1748578245148,-553.52,0.00021917,2]
[363101486,1748578245158,-775.11,0.00021917,2]
[363101487,1748578245167,-1590.44,0.00021917,2]
[363101488,1748578245176,-1664.5,0.00021917,2]
[363101489,1748578245185,-1613.5,0.00021917,2]
[363101490,1748578245195,-420.0,0.00021917,2]
[363101491,1748578245204,-516.46,0.00021917,2]
[363101492,1748578245213,-1391.64,0.00021917,2]
[363101493,1748578245223,-420.0,0.00021917,2]
[363101494,1748578245232,-420.0,0.00021917,2]
[363101495,1748578245242,-420.0,0.00021917,2]
[363101496,1748578245252,-1001.22,0.00021917,2]
[363101497,1748578245262,-275.77848789,0.00021917,2]
[363101498,1748578245271,-320.30081479,0.00021917,2]
[363101499,1748578245280,-420.0,0.00021917,2]
[363101500,1748578245290,-420.0,0.00021917,2]
[363101501,1748578245299,-420.0,0.00021917,2]
[363101502,1748578245308,-580.15,0.00021917,2]
[363101503,1748578245317,-691.88,0.00021917,2]
[363101504,1748578245327,-4708.14,0.00021917,2]
[363101505,1748578245336,-420.0,0.00021917,2]
[363101506,1748578245345,-1045.51,0.00021917,2]
[363101507,1748578245355,-3025.87,0.00021917,2]
[363101508,1748578245365,-296.60577493,0.00021917,2]
[363101509,1748578245376,-1411.24,0.00021917,2]
[363101510,1748578245385,-594.65,0.00021917,2]
[363101511,1748578245394,-420.0,0.00021917,2]
[363101512,1748578245404,-1104.23,0.00021917,2]
[363101513,1748578245414,-511.82,0.00021917,2]
[363101514,1748578245423,-906.41,0.00021917,2]
[363101515,1748578245432,-558.42,0.00021917,2]
[363101516,1748578245442,-2854.15,0.00021917,2]
[363101517,1748578245451,-895.72,0.00021917,2]
[363101518,1748578245461,-1127.72,0.00021917,2]
[363101519,1748578245471,-420.0,0.00021917,2]
[363101520,1748578245481,-420.0,0.00021917,2]
[363101521,1748578245491,-3689.12,0.00021917,2]
[363101523,1748578245501,-513.27,0.00021917,2]
[363101524,1748578245511,-386.3186087,0.00021917,2]
[363101525,1748578245526,-302.0,0.00021917,2]
[363101538,1748578246117,-933.975,0.00021917,2]
[363101539,1748578246140,-521.21,0.00021917,2]
[363101549,1748578246359,-2849.87,0.00021917,2]
[363101559,1748578247289,-2421.0463913,0.00021917,2]
[363101560,1748578247299,-1179.92,0.00021917,2]
[363101561,1748578247307,-990.33,0.00021917,2]
[363101562,1748578247316,-1290.27,0.00021917,2]
[363101563,1748578247325,-105.47698914,0.00021917,2]
[363101564,1748578247336,-1410.85070055,0.00021917,2]
[363101565,1748578247744,-376.07231031,0.00021917,2]
[363101566,1748578247755,-3829.07,0.00021917,2]
[363101567,1748578247765,-420.0,0.00021917,2]
[363101568,1748578247775,-1153.42,0.00021917,2]
[363101569,1748578247785,-1926.29,0.00021917,2]
[363101570,1748578247795,-3701.78,0.00021917,2]
[363101571,1748578247804,-431.64,0.00021917,2]
[363101572,1748578247815,-420.0,0.00021917,2]
[363101573,1748578247824,-774.38,0.00021917,2]
[363101574,1748578247834,-420.0,0.00021917,2]
[363101575,1748578247844,-2435.04,0.00021917,2]
[363101576,1748578247854,-591.01,0.00021917,2]
[363101577,1748578247863,-493.94,0.00021917,2]
[363101578,1748578247874,-1486.49,0.00021917,2]
[363101579,1748578247884,-671.37,0.00021917,2]
[363101580,1748578247894,-3149.75372509,0.00021917,2]
[363101581,1748578247906,-1476.31627491,0.00021917,2]
[363101582,1748578247915,-1279.86,0.00021917,2]
[363101583,1748578247925,-607.15,0.00021917,2]
[363101584,1748578247935,-500.94,0.00021917,2]
[363101585,1748578247945,-544.7,0.00021917,2]
[363101586,1748578247955,-1234.37,0.00021917,2]
[363101587,1748578247964,-724.08,0.00021917,2]
[363101588,1748578247974,-657.76,0.00021917,2]
[363101589,1748578247984,-2995.8,0.00021917,2]
[363101590,1748578247995,-420.0,0.00021917,2]
[363101591,1748578248004,-996.5,0.00021917,2]
[363101592,1748578248015,-1917.02,0.00021917,2]
[363101593,1748578248025,-420.0,0.00021917,2]
[363101594,1748578248038,-420.0,0.00021917,2]
[363101595,1748578248048,-420.0,0.00021917,2]
[363101596,1748578248058,-1056.8,0.00021917,2]
[363101597,1748578248068,-1191.21,0.00021917,2]
[363101598,1748578248078,-464.44,0.00021917,2]
[363101599,1748578248088,-1077.68,0.00021917,2]
[363101600,1748578248097,-8958.98762729,0.00021917,2]
[363101601,1748578248122,-3914.03237271,0.00021917,2]
[363101602,1748578248132,-461.22,0.00021917,2]
[363101603,1748578248142,-436.04,0.00021917,2]
[363101604,1748578248152,-420.0,0.00021917,2]
[363101605,1748578248161,-339.16216697,0.00021917,2]
[363101606,1748578248173,-80.83783303,0.00021917,2]
[363101607,1748578248183,-420.0,0.00021917,2]
[363101608,1748578248193,-641.95,0.00021917,2]
[363101609,1748578248204,-1099.88,0.00021917,2]
[363101610,1748578248214,-1469.35,0.00021917,2]
[363101611,1748578248224,-900.13,0.00021917,2]
[363101612,1748578248234,-1137.48,0.00021917,2]
[363101613,1748578248245,-641.96,0.00021917,2]
[363101614,1748578248255,-1076.23,0.00021917,2]
[363101615,1748578248265,-2404.73,0.00021917,2]
[363101616,1748578248274,-10821.03,0.00021917,2]
[363101617,1748578248284,-420.0,0.00021917,2]
[363101618,1748578248293,-10114.13773961,0.00021917,2]
[363101626,1748578841429,-267.50273047,0.00019999,2]
[363101627,1748578844748,-200.0,0.00019999,2]
[363101628,1748578846293,-32.49726953,0.00019999,2]
[363101632,1748578971600,184.25,0.00013699,2]
[363101634,1748578981906,-301.8186638,0.00019999,2]
[363101635,1748578983319,-154.62860952,0.00019999,2]
[363101636,1748578984854,-43.55272668,0.00019999,2]
[363101637,1748578984884,-184.25,0.00020187,2]
[363101640,1748579070298,164.81,0.00019178,2]
[363101643,1748579110565,834.60651478,0.000154,2]
[363101644,1748579131572,-315.48841353,0.0002,2]
[363101645,1748579134877,-153.07500668,0.0002,2]
[363101646,1748579137478,-154.1,0.0002,2]
[363101647,1748579140577,-151.31886737,0.00019999,2]
[363101648,1748579143291,-148.68113263,0.00019999,2]
[363101649,1748579143315,-51.31886737,0.0002,2]
[363101650,1748579145446,-184.38850823,0.0002,2]
[363101655,1748579149457,-241.39269087,0.0002,2]
[363101656,1748579151698,-365.58529554,0.0002,2]
[363101657,1748579153300,-200.0,0.0002,2]
[363101658,1748579154184,1637.81429343,0.0001902,2]
[363101659,1748579154693,7345.00812706,6.94e-05,2]
[363101660,1748579158609,-227.81729041,0.0001902,2]
[363101661,1748579160151,-154.15,0.0001902,2]
[363101662,1748579162303,1540.78657967,8e-05,2]
[363101663,1748579165081,-262.10627204,0.0001902,2]
[363101664,1748579166631,-153.35,0.0001902,2]
[363101665,1748579166713,942.19422384,8e-05,2]
[363101666,1748579168459,-289.45909673,0.0001902,2]
[363101667,1748579170034,-249.68740699,0.0001902,2]
[363101668,1748579173752,-160.14915463,0.0001902,2]
[363101669,1748579175836,-190.54596244,0.0001902,2]
[363101670,1748579178723,-250.0,0.0001902,2]
[363101671,1748579182376,-169.99,0.0001902,2]
[363101672,1748579184526,-174.23140648,0.0001902,2]
[363101673,1748579190110,-245.02081112,0.0001902,2]
[363101674,1748579194932,-222.81,0.0001902,2]
[363101675,1748579198145,-300.0,0.0001902,2]
[363101676,1748579199701,-200.0,0.0001902,2]
[363101677,1748579204456,-213.08809607,0.0001902,2]
[363101678,1748579206550,-264.78723214,0.0001902,2]
[363101679,1748579208608,-200.0,0.0001902,2]
[363101680,1748579210857,-156.81016178,0.0001902,2]
[363101681,1748579214975,-314.66745225,0.0001902,2]
[363101682,1748579218633,-178.22407624,0.0001902,2]
[363101683,1748579221354,-353.04027563,0.0001902,2]
[363101684,1748579225702,-177.69199089,0.0001902,2]
[363101685,1748579229103,-156.25,0.0001902,2]
[363101686,1748579232532,-246.81,0.0001902,2]
[363101687,1748579236893,-258.6,0.0001902,2]
[363101688,1748579237272,999.670874,0.00018924,2]
[363101689,1748579238409,-185.47345464,0.0001902,2]
[363101690,1748579240577,-174.02199089,0.0001902,2]
[363101691,1748579244987,-469.11800911,0.0001902,2]
[363101692,1748579247380,-298.26,0.0001902,2]
[363101693,1748579253111,-170.61,0.0001902,2]
[363101694,1748579254588,-667.45,0.0001902,2]
[363101695,1748579256087,-325.13215352,0.0001902,2]
[363101696,1748579260534,-160.59,0.0001902,2]
[363101697,1748579262613,-311.2,0.0001902,2]
[363101698,1748579270473,4292.83212241,0.00013,2]
[363101699,1748579275061,2700.35084845,0.00015,2]
[363101701,1748579291842,3060.98475631,0.0001439,2]
[363101702,1748579295608,298.26399611,0.000125,2]
[363101703,1748579312554,263.99495547,0.000149,2]
[363101704,1748579321231,346.57119931,0.00010136,2]
[363101705,1748579321482,3612.07874411,0.00013368,2]
[363101707,1748579350071,1043.5,0.0001823,2]
[363101720,1748579431738,-1200.0,0.00019019,2]
[363101721,1748579431748,-20052.16400127,0.0001902,2]
[363101722,1748579431759,-200.0,0.0001917,2]
[363101723,1748579431769,-214.0,0.0001932,2]
[363101724,1748579431778,-200.0,0.0001946,2]
[363101725,1748579431789,-250.0,0.0001946,2]
[363101726,1748579431798,-5661.91609684,0.000199,2]
[363101727,1748579431808,-163.77387034,0.000199,2]
[363101728,1748579431818,-166.8360045,0.000199,2]
[363101729,1748579431827,-500.0,0.00019973,2]
[363101730,1748579431837,-500.0,0.00019973,2]
[363101731,1748579431846,-500.0,0.00019973,2]
[363101732,1748579431856,-507.15371216,0.00019973,2]
[363101733,1748579431865,-502.91855405,0.00019973,2]
[363101734,1748579431874,-500.0,0.00019973,2]
[363101735,1748579431884,-500.0,0.00019999,2]
[363101736,1748579431894,-500.0,0.00019999,2]
[363101737,1748579431904,-645.12311613,0.00019999,2]
[363101738,1748579431914,-500.0,0.00019999,2]
[363101739,1748579431924,-500.0,0.00019999,2]
[363101740,1748579431933,-500.0,0.00019999,2]
[363101741,1748579431943,-500.0,0.00019999,2]
[363101742,1748579431953,-434.45871891,0.00019999,2]
[363101743,1748579431963,-500.0,0.00019999,2]
[363101744,1748579431973,-500.0,0.00019999,2]
[363101745,1748579431983,-500.0,0.00019999,2]
[363101746,1748579431993,-500.0,0.00019999,2]
[363101747,1748579432003,-500.0,0.00019999,2]
[363101748,1748579432013,-500.0,0.00019999,2]
[363101749,1748579432022,-500.0,0.00019999,2]
[363101750,1748579432032,-500.0,0.00019999,2]
[363101751,1748579432041,-500.0,0.00019999,2]
[363101752,1748579432051,-500.0,0.00019999,2]
[363101753,1748579432061,-500.0,0.00019999,2]
[363101754,1748579432071,-500.0,0.00019999,2]
[363101755,1748579432082,-500.0,0.00019999,2]
[363101756,1748579432094,-500.0,0.00019999,2]
[363101757,1748579432103,-500.0,0.00019999,2]
[363101758,1748579432113,-500.0,0.00019999,2]
[363101759,1748579432123,-500.0,0.00019999,2]
[363101760,1748579432133,-500.0,0.00019999,2]
[363101761,1748579432142,-500.0,0.00019999,2]
[363101762,1748579432152,-500.0,0.00019999,2]
[363101763,1748579432163,-500.0,0.00019999,2]
[363101764,1748579432174,-500.0,0.00019999,2]
[363101765,1748579432183,-500.0,0.00019999,2]
[363101766,1748579432193,-500.0,0.00019999,2]
[363101767,1748579432203,-500.0,0.00019999,2]
[363101768,1748579432212,-183.96364878,0.00019999,2]
[363101769,1748579432221,-500.0,0.00019999,2]
[363101770,1748579432231,-500.0,0.00019999,2]
[363101771,1748579432240,-500.0,0.00019999,2]
[363101772,1748579432250,-500.0,0.00019999,2]
[363101773,1748579432260,-500.0,0.00019999,2]
[363101774,1748579432269,-500.0,0.00019999,2]
[363101775,1748579432279,-500.0,0.00019999,2]
[363101776,1748579432289,-500.0,0.00019999,2]
[363101778,1748579432299,-500.0,0.00019999,2]
[363101779,1748579432308,-500.0,0.00019999,2]
[363101780,1748579432317,-500.0,0.00019999,2]
[363101781,1748579432327,-500.0,0.00019999,2]
[363101782,1748579432337,-500.0,0.00019999,2]
[363101783,1748579432346,-500.0,0.00019999,2]
[363101784,1748579432356,-500.0,0.00019999,2]
[363101785,1748579432365,-701.15933148,0.00019999,2]
[363101786,1748579432375,-701.15933148,0.00019999,2]
[363101787,1748579432384,-701.15933148,0.00019999,2]
[363101788,1748579432394,-701.15933148,0.00019999,2]
[363101789,1748579432404,-701.15933148,0.00019999,2]
[363101790,1748579432413,-701.15933148,0.00019999,2]
[363101791,1748579432423,-701.15933148,0.00019999,2]
[363101792,1748579432433,-701.15933148,0.00019999,2]
[363101793,1748579432442,-701.15933148,0.00019999,2]
[363101794,1748579432452,-701.15933148,0.00019999,2]
[363101795,1748579432461,-701.15933148,0.00019999,2]
[363101796,1748579432470,-701.15933148,0.00019999,2]
[363101797,1748579432480,-701.15933148,0.00019999,2]
[363101798,1748579432489,-701.15933148,0.00019999,2]
[363101799,1748579432499,-701.15933148,0.00019999,2]
[363101800,1748579432511,-701.15933148,0.00019999,2]
[363101801,1748579432521,-701.15933148,0.00019999,2]
[363101802,1748579432530,-701.15933148,0.00019999,2]
[363101803,1748579432540,-701.15933148,0.00019999,2]
[363101804,1748579432550,-701.15933148,0.00019999,2]
[363101805,1748579432560,-701.15933148,0.00019999,2]
[363101806,1748579432569,-701.15933148,0.00019999,2]
[363101808,1748579432579,-701.15933148,0.00019999,2]
[363101810,1748579432589,-701.15933148,0.00019999,2]
[363101811,1748579432599,-701.15933148,0.00019999,2]
[363101813,1748579432610,-701.15933148,0.00019999,2]
[363101815,1748579432619,-701.15933148,0.00019999,2]
[363101817,1748579432629,-701.15933148,0.00019999,2]
[363101819,1748579432638,-701.15933148,0.00019999,2]
[363101820,1748579432647,-701.15933148,0.00019999,2]
[363101822,1748579432657,-701.15933148,0.00019999,2]
[363101824,1748579432667,-701.15933148,0.00019999,2]
[363101825,1748579432677,-154.00357095,0.00019999,2]
[363101827,1748579432686,-701.15933148,0.00019999,2]
[363101828,1748579432696,-701.15933148,0.00019999,2]
[363101829,1748579432706,-701.15933148,0.00019999,2]
[363101830,1748579432715,-701.15933148,0.00019999,2]
[363101831,1748579432725,-701.15933148,0.00019999,2]
[363101832,1748579432735,-701.15933148,0.00019999,2]
[363101833,1748579432744,-701.15933146,0.00019999,2]
[363101834,1748579432754,-701.15933146,0.00019999,2]
[363101835,1748579432768,-701.15933146,0.00019999,2]
[363101836,1748579432777,-701.15933146,0.00019999,2]
[363101837,1748579432787,-701.15933146,0.00019999,2]
[363101838,1748579432797,-701.15933146,0.00019999,2]
[363101839,1748579432807,-701.15933145,0.00019999,2]
[363101840,1748579432817,-150.31217675,0.00019999,2]
[363101841,1748579432826,-417.75115095,0.00019999,2]
[363101842,1748579432835,-205.540275,0.00019999,2]
[363101843,1748579432844,-170802.6156408,0.0002,2]
[363101844,1748579432889,-356830.521,0.0002,2]
[363101845,1748579432900,-35000.0,0.0002,2]
[363101846,1748579432911,-98756.52519019,0.0002,2]
[363101847,1748579432927,-2882.2046326,0.0002,2]
[363101848,1748579432943,-1351.34433458,0.0002,2]
[363101849,1748579432954,-959.69674344,0.0002,2]
[363101850,1748579432980,-2639.00906407,0.0002,2]
[363101851,1748579432991,-810.99093593,0.0002,2]
[363101852,1748579433009,-1712.9407238,0.0002,2]
[363101853,1748579433020,-827.87084126,0.0002,2]
[363101854,1748579433032,-6000.0,0.0002,2]
[363101855,1748579433048,-7339.76361146,0.0002,2]
[363101856,1748579433060,-4318.92176032,0.0002,2]
[363101858,1748579437659,-255.64,0.0001999,2]
[363101859,1748579437669,-8181.35443514,0.0002,2]
[363101860,1748579437681,-7428.45799445,0.0002,2]
[363101861,1748579437723,-437.92117733,0.0002,2]
[363101862,1748579437735,-1384.63261075,0.0002,2]
[363101863,1748579437774,-65700.08825703,0.0002,2]
[363101864,1748579437887,-1103.78704119,0.0002,2]
[363101865,1748579437941,-496.59,0.0002,2]
[363101961,1748579439820,-247.0,0.00019999,2]
[363101963,1748579439830,-584.17112348,0.0002,2]
[363101969,1748579439877,-2239.99555988,0.0002,2]
[363101971,1748579439888,-333.81892786,0.0002,2]
[363101992,1748579439985,-9303.7276782,0.0002,2]
[363101995,1748579440001,-26540.81028935,0.0002,2]
[363101998,1748579440010,-16130.73297368,0.0002,2]
[363102001,1748579440022,-35478.7428617,0.0002,2]
[363102008,1748579440045,-11324.75706141,0.0002,2]